[Event "Titled Tuesday Blitz December 06 Early 2022"]
[White "Yaran, Siar"]
[Black "Salinas Herrera, Pablo"]
[WhiteFideId "6323006"]
[BlackFideId "3407128"]
[WhiteElo "2191"]
[BlackElo "2557"]
[Result "0-1"]
[Round "08"]
[TimeControl "180+1"]
[Date "2022.12.07"]
[WhiteClock "0:00:10"]
[BlackClock "0:00:06"]

1. d4 {[%clk 0:03:00]}  d5 {[%clk 0:03:00]} 2. c4 {[%clk 0:03:01]}  dxc4 {[%clk 0:02:57]} 3. e3 {[%clk 0:03:00]}  e6 {[%clk 0:02:57]} 4. Bxc4 {[%clk 0:03:00]}  a6 {[%clk 0:02:58]} 5. Nc3 {[%clk 0:02:57]}  Nf6 {[%clk 0:02:57]} 6. a3 {[%clk 0:02:45]}  b5 {[%clk 0:02:55]} 7. Be2 {[%clk 0:02:43]}  c5 {[%clk 0:02:54]} 8. Bf3 {[%clk 0:02:43]}  Ra7 {[%clk 0:02:54]} 9. Nge2 {[%clk 0:02:42]}  cxd4 {[%clk 0:02:52]} 10. exd4 {[%clk 0:02:38]}  Be7 {[%clk 0:02:52]} 11. O-O {[%clk 0:02:38]}  O-O {[%clk 0:02:53]} 12. Re1 {[%clk 0:02:33]}  Bb7 {[%clk 0:02:48]} 13. Nf4 {[%clk 0:02:33]}  Bxf3 {[%clk 0:02:47]} 14. Qxf3 {[%clk 0:02:34]}  Rd7 {[%clk 0:02:46]} 15. Be3 {[%clk 0:02:31]}  Bd6 {[%clk 0:02:43]} 16. Rad1 {[%clk 0:02:29]}  Bxf4 {[%clk 0:02:43]} 17. Bxf4 {[%clk 0:02:20]}  Nd5 {[%clk 0:02:43]} 18. Be5 {[%clk 0:02:05]}  Nc6 {[%clk 0:02:42]} 19. Ne4 {[%clk 0:02:04]}  Qe7 {[%clk 0:02:07]} 20. g3 {[%clk 0:01:59]}  f6 {[%clk 0:01:44]} 21. Bf4 {[%clk 0:01:59]}  Nxf4 {[%clk 0:01:45]} 22. Qxf4 {[%clk 0:01:59]}  Nxd4 {[%clk 0:01:45]} 23. Kg2 {[%clk 0:01:42]}  e5 {[%clk 0:01:43]} 24. Qe3 {[%clk 0:01:33]}  Rfd8 {[%clk 0:01:39]} 25. Rc1 {[%clk 0:01:32]}  Qf7 {[%clk 0:01:33]} 26. Nc5 {[%clk 0:01:29]}  Rc7 {[%clk 0:00:42]} 27. b4 {[%clk 0:01:27]}  Rc6 {[%clk 0:00:42]} 28. Qe4 {[%clk 0:01:20]}  h6 {[%clk 0:00:40]} 29. Rcd1 {[%clk 0:01:18]}  Rdd6 {[%clk 0:00:30]} 30. f4 {[%clk 0:01:17]}  Qa2+ {[%clk 0:00:22]} 31. Kh3 {[%clk 0:01:14]}  Qf2 {[%clk 0:00:07]} 32. fxe5 {[%clk 0:00:56]}  Nf3 {[%clk 0:00:07]} 33. exd6 {[%clk 0:00:34]}  Ng5+ {[%clk 0:00:07]} 34. Kg4 {[%clk 0:00:34]}  Nxe4 {[%clk 0:00:08]} 35. Nxe4 {[%clk 0:00:30]}  f5+ {[%clk 0:00:05]} 36. Kh3 {[%clk 0:00:28]}  fxe4 {[%clk 0:00:04]} 37. d7 {[%clk 0:00:28]}  Qf5+ {[%clk 0:00:05]} 38. Kh4 {[%clk 0:00:10]}  Qg5+ {[%clk 0:00:05]} 39. Kh3 {[%clk 0:00:10]}  Qh5+ {[%clk 0:00:06]} 40. Kg2 {[%clk 0:00:10]}  Rc2+ {[%clk 0:00:06]} 41. Kf1 {[%clk 0:00:10]}  Qf3+ {[%clk 0:00:06]} 0-1


[Site "https://www.chess.com"]

[Event "Titled Tuesday Blitz December 06 Early 2022"]
[White "Zhigalko, Sergei"]
[Black "Riehle, Marco"]
[WhiteFideId "13502956"]
[BlackFideId "12904392"]
[WhiteElo "2662"]
[BlackElo "2462"]
[Result "1-0"]
[Round "08"]
[TimeControl "180+1"]
[Date "2022.12.06"]
[WhiteClock "0:00:03"]
[BlackClock "0:00:44"]

1. e4 {[%clk 0:03:00]}  e5 {[%clk 0:03:00]} 2. Nf3 {[%clk 0:03:01]}  Nf6 {[%clk 0:03:01]} 3. Nxe5 {[%clk 0:02:58]}  Nxe4 {[%clk 0:03:01]} 4. Qe2 {[%clk 0:02:58]}  Qe7 {[%clk 0:03:01]} 5. Qxe4 {[%clk 0:02:58]}  d6 {[%clk 0:03:00]} 6. d4 {[%clk 0:02:57]}  dxe5 {[%clk 0:03:00]} 7. dxe5 {[%clk 0:02:52]}  Nc6 {[%clk 0:02:59]} 8. Nc3 {[%clk 0:02:52]}  Qxe5 {[%clk 0:02:58]} 9. Qxe5+ {[%clk 0:02:53]}  Nxe5 {[%clk 0:02:59]} 10. Bf4 {[%clk 0:02:53]}  f6 {[%clk 0:03:00]} 11. O-O-O {[%clk 0:02:49]}  Bd7 {[%clk 0:02:59]} 12. Nb5 {[%clk 0:02:22]}  O-O-O {[%clk 0:02:57]} 13. Bxe5 {[%clk 0:01:58]}  fxe5 {[%clk 0:02:57]} 14. Nc3 {[%clk 0:01:50]}  Bc5 {[%clk 0:02:36]} 15. Ne4 {[%clk 0:01:42]}  Bb6 {[%clk 0:02:36]} 16. Bd3 {[%clk 0:01:42]}  h6 {[%clk 0:02:28]} 17. f3 {[%clk 0:01:41]}  g5 {[%clk 0:02:28]} 18. Nf6 {[%clk 0:01:34]}  Bc6 {[%clk 0:02:16]} 19. Rhe1 {[%clk 0:01:33]}  Rhf8 {[%clk 0:02:15]} 20. Bf5+ {[%clk 0:01:31]}  Kb8 {[%clk 0:02:14]} 21. Rxd8+ {[%clk 0:01:24]}  Rxd8 {[%clk 0:02:15]} 22. Rxe5 {[%clk 0:01:22]}  Bd4 {[%clk 0:02:12]} 23. Re6 {[%clk 0:01:22]}  a6 {[%clk 0:02:05]} 24. c3 {[%clk 0:01:04]}  Bg1 {[%clk 0:02:02]} 25. h3 {[%clk 0:01:02]}  Bh2 {[%clk 0:02:02]} 26. Nh5 {[%clk 0:00:38]}  Be8 {[%clk 0:01:13]} 27. Rxh6 {[%clk 0:00:34]}  Bxh5 {[%clk 0:01:13]} 28. Rxh5 {[%clk 0:00:35]}  Bf4+ {[%clk 0:01:13]} 29. Kc2 {[%clk 0:00:33]}  Rd2+ {[%clk 0:01:13]} 30. Kb3 {[%clk 0:00:32]}  Rxg2 {[%clk 0:01:14]} 31. h4 {[%clk 0:00:27]}  Rh2 {[%clk 0:01:02]} 32. Rh8+ {[%clk 0:00:25]}  Ka7 {[%clk 0:01:02]} 33. h5 {[%clk 0:00:25]}  Bc1 {[%clk 0:01:02]} 34. Bc2 {[%clk 0:00:08]}  Rh3 {[%clk 0:01:02]} 35. h6 {[%clk 0:00:08]}  g4 {[%clk 0:01:02]} 36. h7 {[%clk 0:00:04]}  gxf3 {[%clk 0:00:56]} 37. Rf8 {[%clk 0:00:04]}  f2 {[%clk 0:00:49]} 38. Rxf2 {[%clk 0:00:04]}  Bh6 {[%clk 0:00:44]} 39. h8=Q {[%clk 0:00:03]} 1-0


[Site "https://www.chess.com"]

[Event "Titled Tuesday Blitz December 06 Early 2022"]
[White "Abasov, Nijat"]
[Black "Kravtsiv, Martyn"]
[WhiteFideId "13402960"]
[BlackFideId "14113147"]
[WhiteElo "2546"]
[BlackElo "2695"]
[Result "1-0"]
[Round "09"]
[TimeControl "180+1"]
[Date "2022.12.06"]
[WhiteClock "0:01:31"]
[BlackClock "0:00:01"]

1. d4 {[%clk 0:03:00]}  d5 {[%clk 0:02:59]} 2. Nf3 {[%clk 0:03:01]}  Nf6 {[%clk 0:02:59]} 3. Bf4 {[%clk 0:03:00]}  c5 {[%clk 0:02:58]} 4. e3 {[%clk 0:03:00]}  Nc6 {[%clk 0:02:59]} 5. Nbd2 {[%clk 0:02:59]}  e6 {[%clk 0:02:58]} 6. c3 {[%clk 0:02:57]}  Bd6 {[%clk 0:02:58]} 7. Bg3 {[%clk 0:02:58]}  O-O {[%clk 0:02:58]} 8. Bd3 {[%clk 0:02:59]}  g6 {[%clk 0:02:58]} 9. Qe2 {[%clk 0:02:56]}  b6 {[%clk 0:02:54]} 10. e4 {[%clk 0:02:51]}  Bxg3 {[%clk 0:02:46]} 11. hxg3 {[%clk 0:02:52]}  cxd4 {[%clk 0:02:46]} 12. cxd4 {[%clk 0:02:33]}  dxe4 {[%clk 0:02:41]} 13. Nxe4 {[%clk 0:02:34]}  Nxd4 {[%clk 0:02:36]} 14. Qe3 {[%clk 0:01:48]}  Nf5 {[%clk 0:02:26]} 15. Qf4 {[%clk 0:01:47]}  Bb7 {[%clk 0:01:45]} 16. g4 {[%clk 0:01:45]}  Nxe4 {[%clk 0:01:19]} 17. Bxe4 {[%clk 0:01:46]}  e5 {[%clk 0:00:45]} 18. Qh2 {[%clk 0:01:42]}  Re8 {[%clk 0:00:07]} 19. Qxh7+ {[%clk 0:01:37]}  Kf8 {[%clk 0:00:07]} 20. Qh8+ {[%clk 0:01:33]}  Ke7 {[%clk 0:00:06]} 21. Qxe5+ {[%clk 0:01:34]}  Kf8 {[%clk 0:00:03]} 22. O-O {[%clk 0:01:34]}  Rxe5 {[%clk 0:00:02]} 23. Bxb7 {[%clk 0:01:34]}  Re7 {[%clk 0:00:01]} 24. Bc6 {[%clk 0:01:31]} 1-0


[Site "https://www.chess.com"]

[Event "Titled Tuesday Blitz December 06 Early 2022"]
[White "Albertini, Luca"]
[Black "Mihailidis, Anastasios"]
[WhiteFideId "847038"]
[BlackFideId "4205588"]
[WhiteElo "2207"]
[BlackElo "2312"]
[Result "0-1"]
[Round "09"]
[TimeControl "180+1"]
[Date "2022.12.07"]
[WhiteClock "0:00:20"]
[BlackClock "0:00:32"]

1. e4 {[%clk 0:03:00]}  c5 {[%clk 0:02:59]} 2. Nf3 {[%clk 0:02:59]}  d6 {[%clk 0:02:59]} 3. d4 {[%clk 0:02:58]}  cxd4 {[%clk 0:03:00]} 4. Qxd4 {[%clk 0:02:57]}  Nc6 {[%clk 0:02:59]} 5. Bb5 {[%clk 0:02:57]}  Bd7 {[%clk 0:03:00]} 6. Bxc6 {[%clk 0:02:57]}  Bxc6 {[%clk 0:02:58]} 7. Bg5 {[%clk 0:02:57]}  Nf6 {[%clk 0:02:59]} 8. Bxf6 {[%clk 0:02:56]}  gxf6 {[%clk 0:02:58]} 9. O-O {[%clk 0:02:57]}  e6 {[%clk 0:02:49]} 10. c4 {[%clk 0:02:56]}  Be7 {[%clk 0:02:49]} 11. Nc3 {[%clk 0:02:55]}  h5 {[%clk 0:02:48]} 12. b4 {[%clk 0:02:53]}  b6 {[%clk 0:02:38]} 13. a4 {[%clk 0:02:51]}  h4 {[%clk 0:02:33]} 14. h3 {[%clk 0:02:41]}  Rh7 {[%clk 0:01:50]} 15. a5 {[%clk 0:02:34]}  f5 {[%clk 0:01:35]} 16. axb6 {[%clk 0:02:20]}  e5 {[%clk 0:01:16]} 17. Qe3 {[%clk 0:02:12]}  fxe4 {[%clk 0:01:14]} 18. Nxe4 {[%clk 0:02:04]}  f5 {[%clk 0:01:13]} 19. Nc3 {[%clk 0:01:16]}  f4 {[%clk 0:00:50]} 20. Qd3 {[%clk 0:01:13]}  Rg7 {[%clk 0:00:50]} 21. bxa7 {[%clk 0:00:52]}  Qd7 {[%clk 0:00:38]} 22. b5 {[%clk 0:00:34]}  Qxh3 {[%clk 0:00:33]} 23. Ne1 {[%clk 0:00:23]}  Rxg2+ {[%clk 0:00:32]} 24. Nxg2 {[%clk 0:00:20]}  Qxg2# {[%clk 0:00:32]} 0-1


[Site "https://www.chess.com"]

[Event "Titled Tuesday Blitz December 06 Early 2022"]
[White "Aldokhin, Ivan"]
[Black "Turzo, Attila"]
[WhiteFideId "24115720"]
[BlackFideId "704954"]
[WhiteElo "2313"]
[BlackElo "2482"]
[Result "0-1"]
[Round "09"]
[TimeControl "180+1"]
[Date "2022.12.07"]
[WhiteClock "0:00:10"]
[BlackClock "0:01:21"]

1. e4 {[%clk 0:02:52]}  e5 {[%clk 0:02:59]} 2. Nf3 {[%clk 0:02:52]}  Nc6 {[%clk 0:03:00]} 3. Bb5 {[%clk 0:02:52]}  a6 {[%clk 0:03:00]} 4. Ba4 {[%clk 0:02:53]}  Nf6 {[%clk 0:03:01]} 5. O-O {[%clk 0:02:54]}  Be7 {[%clk 0:03:01]} 6. Re1 {[%clk 0:02:54]}  b5 {[%clk 0:03:01]} 7. Bb3 {[%clk 0:02:54]}  O-O {[%clk 0:03:02]} 8. d4 {[%clk 0:02:53]}  d6 {[%clk 0:02:57]} 9. c3 {[%clk 0:02:52]}  Bg4 {[%clk 0:02:57]} 10. d5 {[%clk 0:02:52]}  Na5 {[%clk 0:02:56]} 11. Bc2 {[%clk 0:02:52]}  c6 {[%clk 0:02:55]} 12. h3 {[%clk 0:02:52]}  Bc8 {[%clk 0:02:49]} 13. dxc6 {[%clk 0:02:52]}  Nxc6 {[%clk 0:02:48]} 14. Nbd2 {[%clk 0:02:52]}  h6 {[%clk 0:02:45]} 15. Nf1 {[%clk 0:02:53]}  Be6 {[%clk 0:02:45]} 16. Ng3 {[%clk 0:02:37]}  Re8 {[%clk 0:02:43]} 17. Nh4 {[%clk 0:02:35]}  Bf8 {[%clk 0:02:42]} 18. Qf3 {[%clk 0:02:27]}  d5 {[%clk 0:02:36]} 19. Nhf5 {[%clk 0:02:18]}  d4 {[%clk 0:02:28]} 20. cxd4 {[%clk 0:01:45]}  exd4 {[%clk 0:02:27]} 21. e5 {[%clk 0:01:37]}  Nd5 {[%clk 0:02:23]} 22. Nxh6+ {[%clk 0:01:01]}  gxh6 {[%clk 0:02:21]} 23. Qe4 {[%clk 0:01:02]}  Bg7 {[%clk 0:01:55]} 24. Qh7+ {[%clk 0:00:46]}  Kf8 {[%clk 0:01:56]} 25. Nh5 {[%clk 0:00:40]}  Bxe5 {[%clk 0:01:50]} 26. f4 {[%clk 0:00:20]}  Nf6 {[%clk 0:01:32]} 27. Qxh6+ {[%clk 0:00:16]}  Ke7 {[%clk 0:01:31]} 28. fxe5 {[%clk 0:00:12]}  Nxh5 {[%clk 0:01:32]} 29. Bg5+ {[%clk 0:00:10]}  f6 {[%clk 0:01:28]} 30. Qh7+ {[%clk 0:00:09]}  Bf7 {[%clk 0:01:25]} 31. exf6+ {[%clk 0:00:10]}  Kd6 {[%clk 0:01:24]} 32. Qxf7 {[%clk 0:00:10]}  Qd7 {[%clk 0:01:21]} 0-1


[Site "https://www.chess.com"]

[Event "Titled Tuesday Blitz December 06 Early 2022"]
[White "Aloma Vidal, Robert"]
[Black "Mkrtchian, Lilit"]
[WhiteFideId "2260409"]
[BlackFideId "13300601"]
[WhiteElo "2435"]
[BlackElo "2316"]
[Result "1-0"]
[Round "09"]
[TimeControl "180+1"]
[Date "2022.12.07"]
[WhiteClock "0:00:14"]
[BlackClock "0:00:03"]

1. e4 {[%clk 0:03:00]}  e6 {[%clk 0:02:59]} 2. d4 {[%clk 0:03:01]}  d5 {[%clk 0:03:00]} 3. e5 {[%clk 0:03:01]}  c5 {[%clk 0:02:59]} 4. c3 {[%clk 0:03:02]}  Nc6 {[%clk 0:02:59]} 5. Nf3 {[%clk 0:03:02]}  Bd7 {[%clk 0:02:59]} 6. Bd3 {[%clk 0:03:01]}  cxd4 {[%clk 0:02:56]} 7. O-O {[%clk 0:03:01]}  Qb6 {[%clk 0:02:48]} 8. Re1 {[%clk 0:02:59]}  Nge7 {[%clk 0:02:41]} 9. h4 {[%clk 0:02:56]}  h6 {[%clk 0:02:41]} 10. h5 {[%clk 0:02:56]}  Rc8 {[%clk 0:02:26]} 11. a3 {[%clk 0:02:53]}  a6 {[%clk 0:02:23]} 12. b4 {[%clk 0:02:31]}  dxc3 {[%clk 0:02:01]} 13. Nxc3 {[%clk 0:02:31]}  Nxb4 {[%clk 0:01:56]} 14. Be3 {[%clk 0:02:27]}  Qd8 {[%clk 0:01:45]} 15. axb4 {[%clk 0:02:03]}  Rxc3 {[%clk 0:01:43]} 16. Qd2 {[%clk 0:01:38]}  Rc8 {[%clk 0:01:42]} 17. Rab1 {[%clk 0:01:24]}  Bb5 {[%clk 0:01:19]} 18. Bxb5+ {[%clk 0:01:20]}  axb5 {[%clk 0:01:20]} 19. Nd4 {[%clk 0:01:20]}  Qd7 {[%clk 0:01:13]} 20. Rb3 {[%clk 0:00:55]}  Nc6 {[%clk 0:00:56]} 21. Nxb5 {[%clk 0:00:51]}  Nxe5 {[%clk 0:00:54]} 22. Na7 {[%clk 0:00:47]}  Nc4 {[%clk 0:00:50]} 23. Qd4 {[%clk 0:00:41]}  Ra8 {[%clk 0:00:46]} 24. Bf4 {[%clk 0:00:35]}  f6 {[%clk 0:00:29]} 25. b5 {[%clk 0:00:30]}  Be7 {[%clk 0:00:21]} 26. b6 {[%clk 0:00:24]}  e5 {[%clk 0:00:17]} 27. Qd3 {[%clk 0:00:23]}  exf4 {[%clk 0:00:10]} 28. Qg6+ {[%clk 0:00:23]}  Kd8 {[%clk 0:00:10]} 29. Nb5 {[%clk 0:00:22]}  Re8 {[%clk 0:00:08]} 30. Nc7 {[%clk 0:00:22]}  Ra3 {[%clk 0:00:05]} 31. Rb5 {[%clk 0:00:16]}  Nd6 {[%clk 0:00:03]} 32. Rxd5 {[%clk 0:00:14]} 1-0


[Site "https://www.chess.com"]

[Event "Titled Tuesday Blitz December 06 Early 2022"]
[White "Atakhan, Abtin"]
[Black "Gheorghiu, Calin"]
[WhiteFideId "22502203"]
[BlackFideId "1200305"]
[WhiteElo "2189"]
[BlackElo "2224"]
[Result "1-0"]
[Round "09"]
[TimeControl "180+1"]
[Date "2022.12.07"]
[WhiteClock "0:01:17"]
[BlackClock "0:01:20"]

1. d4 {[%clk 0:01:58]}  Nf6 {[%clk 0:02:56]} 2. c4 {[%clk 0:01:58]}  e6 {[%clk 0:02:55]} 3. Nf3 {[%clk 0:01:58]}  Bb4+ {[%clk 0:02:55]} 4. Bd2 {[%clk 0:01:57]}  Qe7 {[%clk 0:02:53]} 5. g3 {[%clk 0:01:56]}  b6 {[%clk 0:02:53]} 6. Bg2 {[%clk 0:01:55]}  Bb7 {[%clk 0:02:54]} 7. O-O {[%clk 0:01:56]}  Bxd2 {[%clk 0:02:52]} 8. Nbxd2 {[%clk 0:01:53]}  O-O {[%clk 0:02:49]} 9. Qc2 {[%clk 0:01:53]}  d6 {[%clk 0:02:50]} 10. Rac1 {[%clk 0:01:48]}  c5 {[%clk 0:02:49]} 11. Rfd1 {[%clk 0:01:45]}  Nbd7 {[%clk 0:02:49]} 12. e3 {[%clk 0:01:40]}  Rac8 {[%clk 0:02:47]} 13. Qb1 {[%clk 0:01:36]}  a6 {[%clk 0:02:46]} 14. b4 {[%clk 0:01:36]}  cxd4 {[%clk 0:02:36]} 15. exd4 {[%clk 0:01:37]}  b5 {[%clk 0:02:31]} 16. c5 {[%clk 0:01:37]}  dxc5 {[%clk 0:02:31]} 17. dxc5 {[%clk 0:01:35]}  Rfd8 {[%clk 0:02:29]} 18. Nb3 {[%clk 0:01:35]}  Bd5 {[%clk 0:02:27]} 19. Na5 {[%clk 0:01:34]}  Nb8 {[%clk 0:02:26]} 20. Nd4 {[%clk 0:01:31]}  e5 {[%clk 0:02:22]} 21. Nf5 {[%clk 0:01:24]}  Qe6 {[%clk 0:02:16]} 22. Nd6 {[%clk 0:01:22]}  Rc7 {[%clk 0:02:11]} 23. Bxd5 {[%clk 0:01:22]}  Nxd5 {[%clk 0:02:10]} 24. Qb3 {[%clk 0:01:23]}  Ne7 {[%clk 0:01:28]} 25. Qxe6 {[%clk 0:01:22]}  fxe6 {[%clk 0:01:27]} 26. a3 {[%clk 0:01:22]}  Nf5 {[%clk 0:01:24]} 27. Nxf5 {[%clk 0:01:16]}  Rxd1+ {[%clk 0:01:20]} 28. Rxd1 {[%clk 0:01:17]} 1-0


[Site "https://www.chess.com"]

[Event "Titled Tuesday Blitz December 06 Early 2022"]
[White "Clawitter, Craig"]
[Black "Van Osch, Mees"]
[WhiteFideId "2023105"]
[BlackFideId "1035967"]
[WhiteElo "2175"]
[BlackElo "2324"]
[Result "1-0"]
[Round "09"]
[TimeControl "180+1"]
[Date "2022.12.07"]
[WhiteClock "0:00:07"]
[BlackClock "0:00:14"]

1. e4 {[%clk 0:02:55]}  e6 {[%clk 0:03:00]} 2. d4 {[%clk 0:02:51]}  d5 {[%clk 0:02:59]} 3. e5 {[%clk 0:02:51]}  c5 {[%clk 0:02:58]} 4. c3 {[%clk 0:02:52]}  Bd7 {[%clk 0:02:56]} 5. Nf3 {[%clk 0:02:48]}  Qb6 {[%clk 0:02:56]} 6. Bd3 {[%clk 0:02:44]}  Bb5 {[%clk 0:02:56]} 7. dxc5 {[%clk 0:02:44]}  Bxc5 {[%clk 0:02:55]} 8. b4 {[%clk 0:02:44]}  Be7 {[%clk 0:02:27]} 9. O-O {[%clk 0:02:25]}  Bxd3 {[%clk 0:02:25]} 10. Qxd3 {[%clk 0:02:26]}  Nh6 {[%clk 0:02:24]} 11. Bxh6 {[%clk 0:02:19]}  gxh6 {[%clk 0:02:25]} 12. Nd4 {[%clk 0:02:20]}  Nc6 {[%clk 0:02:23]} 13. Nxc6 {[%clk 0:02:04]}  Qxc6 {[%clk 0:02:23]} 14. Nd2 {[%clk 0:02:01]}  O-O-O {[%clk 0:02:22]} 15. Nb3 {[%clk 0:01:47]}  Qc4 {[%clk 0:02:20]} 16. Qf3 {[%clk 0:01:41]}  Rhg8 {[%clk 0:02:17]} 17. Nd4 {[%clk 0:01:24]}  Bxb4 {[%clk 0:02:11]} 18. cxb4 {[%clk 0:01:11]}  Qxd4 {[%clk 0:02:11]} 19. Qxf7 {[%clk 0:00:54]}  Kb8 {[%clk 0:01:49]} 20. Qxe6 {[%clk 0:00:32]}  Rg6 {[%clk 0:01:28]} 21. Qf5 {[%clk 0:00:21]}  Rg5 {[%clk 0:01:16]} 22. Qf7 {[%clk 0:00:05]}  Qxe5 {[%clk 0:00:49]} 23. Rac1 {[%clk 0:00:05]}  Rg7 {[%clk 0:00:30]} 24. Qf3 {[%clk 0:00:05]}  Rdg8 {[%clk 0:00:26]} 25. g3 {[%clk 0:00:02]}  h5 {[%clk 0:00:26]} 26. Rfe1 {[%clk 0:00:02]}  Qd6 {[%clk 0:00:25]} 27. Red1 {[%clk 0:00:02]}  Rg5 {[%clk 0:00:23]} 28. Rd3 {[%clk 0:00:03]}  h4 {[%clk 0:00:23]} 29. Rcd1 {[%clk 0:00:03]}  hxg3 {[%clk 0:00:24]} 30. hxg3 {[%clk 0:00:04]}  Rf8 {[%clk 0:00:17]} 31. Rxd5 {[%clk 0:00:03]}  Rxd5 {[%clk 0:00:12]} 32. Rxd5 {[%clk 0:00:03]}  Qxb4 {[%clk 0:00:13]} 33. Qe3 {[%clk 0:00:02]}  a6 {[%clk 0:00:10]} 34. Qe5+ {[%clk 0:00:02]}  Ka8 {[%clk 0:00:10]} 35. Qd6 {[%clk 0:00:03]}  Qb1+ {[%clk 0:00:09]} 36. Kg2 {[%clk 0:00:03]}  Qe4+ {[%clk 0:00:09]} 37. Kg1 {[%clk 0:00:04]}  Qe1+ {[%clk 0:00:08]} 38. Kg2 {[%clk 0:00:04]}  Rxf2+ {[%clk 0:00:07]} 39. Kh3 {[%clk 0:00:05]}  Qh1+ {[%clk 0:00:07]} 40. Kg4 {[%clk 0:00:05]}  Qe4+ {[%clk 0:00:07]} 41. Kh3 {[%clk 0:00:05]}  Qg2+ {[%clk 0:00:08]} 42. Kg4 {[%clk 0:00:05]}  Qf3+ {[%clk 0:00:08]} 43. Kh3 {[%clk 0:00:05]}  Qh1+ {[%clk 0:00:07]} 44. Kg4 {[%clk 0:00:06]}  Rf8 {[%clk 0:00:07]} 45. Qxf8+ {[%clk 0:00:05]}  Ka7 {[%clk 0:00:08]} 46. Qf2+ {[%clk 0:00:06]}  Kb8 {[%clk 0:00:07]} 47. Qf4+ {[%clk 0:00:06]}  Ka8 {[%clk 0:00:07]} 48. Rd8+ {[%clk 0:00:05]}  Ka7 {[%clk 0:00:07]} 49. Qd4+ {[%clk 0:00:06]}  b6 {[%clk 0:00:08]} 50. Qd7+ {[%clk 0:00:06]}  Qb7 {[%clk 0:00:07]} 51. Qxb7+ {[%clk 0:00:06]}  Kxb7 {[%clk 0:00:08]} 52. Rd7+ {[%clk 0:00:07]}  Kc6 {[%clk 0:00:08]} 53. Rxh7 {[%clk 0:00:07]}  Kb5 {[%clk 0:00:09]} 54. Kf4 {[%clk 0:00:06]}  Kb4 {[%clk 0:00:10]} 55. g4 {[%clk 0:00:07]}  a5 {[%clk 0:00:11]} 56. g5 {[%clk 0:00:08]}  b5 {[%clk 0:00:11]} 57. g6 {[%clk 0:00:08]}  Ka3 {[%clk 0:00:12]} 58. Rh2 {[%clk 0:00:07]}  b4 {[%clk 0:00:13]} 59. g7 {[%clk 0:00:07]}  a4 {[%clk 0:00:14]} 60. g8=Q {[%clk 0:00:07]} 1-0


[Site "https://www.chess.com"]